[Event "ESP chT Honor Division 2019"]
[Site "Melilla"]
[Date "2019.10.03"]
[Round "4.6"]
[White "Di Benedetto, Desiree"]
[Black "Vega Gutierrez, Belinda"]
[Result "1/2-1/2"]
[ECO "D37"]
[WhiteElo "2235"]
[BlackElo "2152"]
[Annotator "NA"]
[PlyCount "103"]
[EventDate "2019.09.30"]
[EventType "team-tourn"]
[EventCountry "ESP"]
[SourceTitle "playchess.com"]
[Source "ChessBase"]
[SourceQuality "1"]
[TimeControl "40/5400+30:1800+30"]

1. d4 {[%emt 0:00:00]} d5 {[%emt 0:00:00]} 2. Nf3 {[%emt 0:00:07]} Nf6 {[%emt 0:00:15]} 3. c4 {[%emt 0:00:31]} e6 {[%emt 0:00:39]} 4. Nc3 {[%emt 0:01:55]} Be7 {[%emt 0:00:27]} 5. cxd5 {[%emt 0:01:39]} exd5 {[%emt 0:00:13]} 6. Bf4 {[%emt 0:00:14]} c6 {[%emt 0:00:56]} 7. Qc2 {[%emt 0:00:22]} Bg4 {[%emt 0:04:14]} 8. Ne5 {[%emt 0:00:54]} Bh5 {[%emt 0:01:21]} 9. e3 {[%emt 0:00:31]} Nbd7 {[%emt 0:01:54]} 10. Bd3 {[%emt 0:02:04]} Bg6 {[%emt 0:00:54]} 11. Nxg6 {[%emt 0:00:20]} hxg6 {[%emt 0:00:03]} 12. h3 {[%emt 0:01:13]} Nf8 {[%emt 0:03:29]} 13. a3 {[%emt 0:04:58]} Ne6 {[%emt 0:04:36]} 14. Bh2 {[%emt 0:03:00]} Bd6 {[%emt 0:01:40]} 15. Bxd6 {[%emt 0:01:02]} Qxd6 {[%emt 0:00:04]} 16. b4 {[%emt 0:01:27]} g5 {[%emt 0:08:58]} 17. Ne2 {[%emt 0:09:25]} g4 {[%emt 0:01:25]} 18. Ng3 {[%emt 0:16:21]} gxh3 {[%emt 0:08:07]} 19. gxh3 {[%emt 0:00:45]} a6 {[%emt 0:03:18]} 20. Nf5 {[%emt 0:03:50]} Qd7 {[%emt 0:00:48]} 21. f4 {[%emt 0:02:59]} Nh5 {[%emt 0:06:09]} 22. Qf2 {[%emt 0:04:29]} Qd8 {[%emt 0:05:30]} 23. Ng3 {[%emt 0:06:08]} Nxg3 {[%emt 0:00:19]} 24. Qxg3 {[%emt 0:00:02]} Qh4 {[%emt 0:27:58]} 25. Kf2 {[%emt 0:00:20]} Ke7 {[%emt 0:01:20]} 26. Qxh4+ {[%emt 0:01:10]} Rxh4 {[%emt 0:00:04]} 27. Kg3 {[%emt 0:00:50]} Rah8 {[%emt 0:00:59]} 28. a4 {[%emt 0:01:10]} g5 {[%emt 0:03:20]} 29. f5 {[%emt 0:03:53]} Nc7 {[%emt 0:10:39]} 30. Kg2 {[%emt 0:04:56]} Kf6 {[%emt 0:00:22]} 31. Raf1 {[%emt 0:02:27]} Ne8 {[%emt 0:01:33]} 32. b5 {[%emt 0:02:49]} axb5 {[%emt 0:00:06]} 33. axb5 {[%emt 0:00:05]} cxb5 {[%emt 0:00:06]} 34. Bxb5 {[%emt 0:01:04]} Nd6 {[%emt 0:00:19]} 35. Bd3 {[%emt 0:01:25]} Ne4 {[%emt 0:03:41]} 36. Be2 {[%emt 0:09:32]} Rc8 {[%emt 0:01:00]} 37. Rc1 {[%emt 0:02:40]} Rxc1 {[%emt 0:00:32]} 38. Rxc1 {[%emt 0:00:01]} Kxf5 {[%emt 0:00:10]} 39. Bg4+ {[%emt 0:05:58]} Kg6 {[%emt 0:00:13]} 40. Rb1 {[%emt 0:01:12]} f5 {[%emt 0:01:16]} 41. Rb6+ {[%emt 0:30:22]} Nf6 {[%emt 0:30:13]} 42. Bf3 {[%emt 0:00:28]} f4 {[%emt 0:00:00]} 43. e4 {[%emt 0:00:00]} dxe4 {[%emt 0:00:00]} 44. Bxe4+ {[%emt 0:00:00]} Kf7 {[%emt 0:00:00]} 45. Rxb7+ {[%emt 0:00:00]} Ke6 {[%emt 0:00:00]} 46. Rb6+ {[%emt 0:00:00]} Ke7 {[%emt 0:00:00]} 47. Rb7+ {[%emt 0:00:00]} Ke6 {[%emt 0:00:00]} 48. Bf3 {[%emt 0:00:00]} Rh8 {[%emt 0:00:00]} 49. Rb5 {[%emt 0:00:00]} Rd8 {[%emt 0:00:00]} 50. Re5+ {[%emt 0:00:00]} Kf7 {[%emt 0:00:00]} 51. Rxg5 {[%emt 0:00:00]} Rxd4 {[%emt 0:00:00]} 52. Bh5+ {[%emt 0:00:00]} 1/2-1/2

[Event "ESP chT Honor Division 2019"]
[Site "Melilla"]
[Date "2019.10.03"]
[Round "4.11"]
[White "Ubilava, Elizbar"]
[Black "Moreno Tejera, Emilio"]
[Result "0-1"]
[ECO "E62"]
[WhiteElo "2481"]
[BlackElo "2427"]
[Annotator "ChessBase"]
[PlyCount "108"]
[EventDate "2019.09.30"]
[EventType "team-tourn"]
[EventCountry "ESP"]
[SourceTitle "playchess.com"]
[Source "ChessBase"]
[SourceQuality "1"]
[TimeControl "40/5400+30:1800+30"]

1. d4 {[%emt 0:00:00]} Nf6 {[%emt 0:00:00]} 2. Nf3 {[%emt 0:00:00]} g6 {[%emt 0:00:00]} 3. g3 {[%emt 0:00:20]} Bg7 {[%emt 0:00:09]} 4. Bg2 {[%emt 0:00:10]} O-O {[%emt 0:00:38]} 5. O-O {[%emt 0:00:58]} d6 {[%emt 0:00:35]} 6. c4 {[%emt 0:00:46]} Nc6 {[%emt 0:00:58]} 7. Nc3 {[%emt 0:00:34]} e5 {[%emt 0:00:42]} 8. dxe5 {[%emt 0:10:45]} dxe5 {[%emt 0:02:45]} 9. Bg5 {[%emt 0:00:44]} Be6 {[%emt 0:00:14]} 10. Qb3 {[%emt 0:17:43]} Qb8 {[%emt 0:20:13]} 11. Bxf6 {[%emt 0:00:05]} Bxf6 {[%emt 0:15:49]} 12. Nd5 {[%emt 0:16:39]} Bd8 {[%emt 0:17:44]} 13. Rfd1 {[%emt 0:03:56]} f6 {[%emt 0:04:24]} 14. c5 {[%emt 0:03:31]} Rf7 {[%emt 0:03:14]} 15. e4 {[%emt 0:03:43]} Kg7 {[%emt 0:01:34]} 16. Qc3 {[%emt 0:08:55]} Bg4 17. Nb4 {[%emt 0:00:06]} Nxb4 {[%emt 0:04:47]} 18. Qxb4 {[%emt 0:01:57]} Be7 {[%emt 0:07:17]} 19. Qc3 {[%emt 0:03:45]} b6 {[%emt 0:02:50]} 20. c6 Bc5 21. h3 {[%emt 0:09:53]} Bxf3 {[%emt 0:03:04]} 22. Qxf3 {[%emt 0:00:52]} Bd4 {[%emt 0:00:45]} 23. Rd2 {[%emt 0:01:35]} Qf8 {[%emt 0:03:32]} 24. Rc2 Rd8 {[%emt 0:01:03]} 25. Kh2 {[%emt 0:04:57]} Rd6 26. Rd1 {[%emt 0:03:28]} a5 {[%emt 0:02:54]} 27. Qb3 {[%emt 0:01:30]} Qe7 {[%emt 0:01:58]} 28. Rdd2 {[%emt 0:01:18]} Rf8 {[%emt 0:00:49]} 29. Bf1 {[%emt 0:00:45]} h5 {[%emt 0:01:13]} 30. h4 {[%emt 0:00:42]} f5 {[%emt 0:00:15]} 31. exf5 gxf5 {[%emt 0:00:09]} 32. Qf3 {[%emt 0:03:47]} f4 {[%emt 0:00:44]} 33. Bd3 {[%emt 0:01:10]} Kh6 {[%emt 0:01:35]} 34. Re2 {[%emt 0:00:38]} Qg7 {[%emt 0:01:12]} 35. Kg2 {[%emt 0:00:19]} Rg8 36. Be4 {[%emt 0:00:26]} Rf6 {[%emt 0:01:07]} 37. Qd3 {[%emt 0:01:05]} Qg4 {[%emt 0:02:16]} 38. Rc4 {[%emt 0:00:54]} Qxh4 {[%emt 0:00:10]} 39. Rxd4 {[%emt 0:00:32]} exd4 {[%emt 0:01:40]} 40. Bd5 {[%emt 0:00:37]} fxg3 {[%emt 0:01:04]} 41. fxg3 {[%emt 0:30:07]} Rxg3+ {[%emt 0:30:30]} 42. Qxg3 {[%emt 0:00:56]} Rg6 {[%emt 0:00:00]} 43. Qxg6+ {[%emt 0:00:30]} Kxg6 {[%emt 0:00:00]} 44. Bf3 {[%emt 0:00:00]} Kf6 {[%emt 0:00:00]} 45. Rf2 {[%emt 0:00:00]} Ke5 {[%emt 0:00:00]} 46. Re2+ {[%emt 0:00:00]} Kd6 {[%emt 0:00:00]} 47. Re4 {[%emt 0:00:00]} Qg5+ {[%emt 0:00:00]} 48. Kf2 {[%emt 0:00:00]} Qd2+ {[%emt 0:00:00]} 49. Re2 {[%emt 0:00:00]} Qf4 {[%emt 0:00:00]} 50. Re4 {[%emt 0:00:00]} Qh2+ {[%emt 0:00:00]} 51. Bg2 {[%emt 0:00:00]} Kc5 {[%emt 0:00:00]} 52. b3 {[%emt 0:00:00]} h4 {[%emt 0:00:00]} 53. Kf1 {[%emt 0:00:00]} h3 {[%emt 0:00:00]} 54. Bf3 {[%emt 0:00:00]} Qxa2 {[%emt 0:00:00]} 0-1

[Event "ESP chT Honor Division 2019"]
[Site "Melilla"]
[Date "2019.10.03"]
[Round "4.13"]
[White "Bacrot, Etienne"]
[Black "Ivanchuk, Vassily"]
[Result "1-0"]
[ECO "E10"]
[WhiteElo "2671"]
[BlackElo "2686"]
[Annotator "ChessBase"]
[PlyCount "93"]
[EventDate "2019.09.30"]
[EventType "team-tourn"]
[EventCountry "ESP"]
[SourceTitle "playchess.com"]
[Source "ChessBase"]
[SourceQuality "1"]
[TimeControl "40/5400+30:1800+30"]

1. c4 {[%emt 0:04:00]} Nf6 {[%emt 0:01:25]} 2. d4 e6 3. Nf3 {[%emt 0:01:01]} d5 {[%emt 0:00:57]} 4. e3 {[%emt 0:00:07]} Nbd7 {[%emt 0:04:10]} 5. b3 {[%emt 0:03:00]} c5 {[%emt 0:07:54]} 6. Bd3 {[%emt 0:05:58]} b6 {[%emt 0:11:48]} 7. O-O {[%emt 0:02:06]} Bb7 {[%emt 0:00:31]} 8. cxd5 {[%emt 0:04:10]} Nxd5 {[%emt 0:00:10]} 9. Bb2 {[%emt 0:00:28]} Be7 {[%emt 0:02:49]} 10. dxc5 {[%emt 0:06:32]} Bf6 {[%emt 0:01:04]} 11. Qe2 {[%emt 0:07:39]} Nxc5 {[%emt 0:11:58]} 12. Bb5+ {[%emt 0:00:43]} Kf8 {[%emt 0:00:04]} 13. Rd1 {[%emt 0:04:30]} Bxb2 {[%emt 0:24:36]} 14. Qxb2 {[%emt 0:00:19]} Qf6 {[%emt 0:00:01]} 15. Ne5 {[%emt 0:04:21]} Qg5 {[%emt 0:02:32]} 16. Bc6 {[%emt 0:14:34]} Bxc6 {[%emt 0:08:17]} 17. Nxc6 {[%emt 0:01:53]} Qf6 {[%emt 0:00:57]} 18. Ne5 {[%emt 0:03:33]} Kg8 {[%emt 0:07:32]} 19. Nd2 {[%emt 0:04:28]} h5 {[%emt 0:00:02]} 20. Qd4 {[%emt 0:19:02]} h4 {[%emt 0:00:52]} 21. h3 {[%emt 0:01:12]} Rh5 {[%emt 0:07:08]} 22. Ndf3 {[%emt 0:01:22]} Qf5 {[%emt 0:01:06]} 23. Rac1 {[%emt 0:04:00]} Qe4 {[%emt 0:02:20]} 24. Qb2 {[%emt 0:04:55]} f6 {[%emt 0:00:34]} 25. Rc4 {[%emt 0:00:36]} Qh7 {[%emt 0:00:30]} 26. Nc6 {[%emt 0:00:12]} a5 {[%emt 0:00:39]} 27. Nfd4 {[%emt 0:01:59]} Kh8 {[%emt 0:01:07]} 28. Qe2 {[%emt 0:00:42]} Re8 {[%emt 0:01:14]} 29. Qf3 {[%emt 0:00:21]} Ne4 {[%emt 0:00:41]} 30. Nb5 {[%emt 0:00:42]} Nc5 {[%emt 0:01:24]} 31. e4 Nb4 {[%emt 0:00:17]} 32. Nxb4 {[%emt 0:00:29]} axb4 {[%emt 0:00:02]} 33. Nd6 {[%emt 0:00:10]} Rf8 {[%emt 0:00:56]} 34. Rxb4 {[%emt 0:00:07]} Nd7 {[%emt 0:00:01]} 35. Nc4 {[%emt 0:00:47]} Ne5 {[%emt 0:00:08]} 36. Nxe5 {[%emt 0:01:05]} Rxe5 {[%emt 0:00:01]} 37. a4 {[%emt 0:00:21]} Qg6 {[%emt 0:00:31]} 38. Rxb6 {[%emt 0:00:41]} Rxe4 {[%emt 0:00:01]} 39. a5 {[%emt 0:00:07]} f5 {[%emt 0:00:31]} 40. a6 {[%emt 0:00:16]} Kh7 {[%emt 0:00:01]} 41. a7 {[%emt 0:31:00]} Ra8 {[%emt 0:11:17]} 42. Rb7 {[%emt 0:00:00]} Kh6 {[%emt 0:04:12]} 43. Qc3 {[%emt 0:00:00]} Re2 {[%emt 0:07:03]} 44. Rb8 {[%emt 0:00:00]} Rxa7 {[%emt 0:00:27]} 45. Rh8+ {[%emt 0:00:00]} Kg5 {[%emt 0:00:06]} 46. f4+ {[%emt 0:00:00]} Kxf4 {[%emt 0:00:06]} 47. Qf3+ {[%emt 0:00:00]} 1-0

[Event "ESP chT Honor Division 2019"]
[Site "Melilla"]
[Date "2019.10.03"]
[Round "4.16"]
[White "Mareco, Sandro"]
[Black "Franco Alonso, Alejandro"]
[Result "1-0"]
[ECO "A14"]
[WhiteElo "2634"]
[BlackElo "2384"]
[Annotator "ChessBase"]
[PlyCount "51"]
[EventDate "2019.09.30"]
[EventType "team-tourn"]
[EventCountry "ESP"]
[SourceTitle "playchess.com"]
[Source "ChessBase"]
[SourceQuality "1"]
[TimeControl "40/5400+30:1800+30"]

1. Nf3 {[%emt 0:00:00]} Nf6 {[%emt 0:00:00]} 2. c4 {[%emt 0:00:00]} e6 {[%emt 0:00:00]} 3. g3 {[%emt 0:00:00]} d5 {[%emt 0:00:18]} 4. Bg2 {[%emt 0:00:00]} Be7 {[%emt 0:00:13]} 5. O-O {[%emt 0:00:00]} O-O {[%emt 0:00:09]} 6. b3 {[%emt 0:00:00]} a5 {[%emt 0:00:07]} 7. Nc3 {[%emt 0:00:48]} c6 {[%emt 0:00:09]} 8. d4 {[%emt 0:07:00]} b6 {[%emt 0:00:37]} 9. Qd3 {[%emt 0:08:11]} Ba6 {[%emt 0:03:51]} 10. Rd1 {[%emt 0:01:18]} Nbd7 {[%emt 0:01:53]} 11. e4 {[%emt 0:00:47]} b5 {[%emt 0:04:47]} 12. e5 {[%emt 0:07:00]} bxc4 {[%emt 0:10:05]} 13. Qc2 {[%emt 0:00:05]} Ne8 {[%emt 0:01:00]} 14. h4 {[%emt 0:00:12]} Rc8 {[%emt 0:10:39]} 15. Bg5 {[%emt 0:07:26]} c5 {[%emt 0:10:16]} 16. dxc5 {[%emt 0:04:27]} Nxc5 {[%emt 0:04:42]} 17. bxc4 {[%emt 0:00:13]} Bxc4 {[%emt 0:01:03]} 18. Rd4 {[%emt 0:01:02]} g6 {[%emt 0:10:35]} 19. Rad1 {[%emt 0:01:18]} Qc7 {[%emt 0:00:19]} 20. Rxc4 {[%emt 0:17:12]} Bxg5 {[%emt 0:05:14]} 21. Rxd5 {[%emt 0:01:20]} Be7 {[%emt 0:16:53]} 22. Rd1 {[%emt 0:01:30]} Qa7 {[%emt 0:08:00]} 23. Ne4 {[%emt 0:12:04]} Rc7 {[%emt 0:02:27]} 24. Nd6 {[%emt 0:02:34]} Na6 {[%emt 0:02:34]} 25. Nc8 {[%emt 0:00:14]} Nb4 {[%emt 0:00:29]} 26. Rxc7 {[%emt 0:00:19]} 1-0

[Event "ESP chT Honor Division 2019"]
[Site "Melilla"]
[Date "2019.10.03"]
[Round "4.17"]
[White "Gonzalez De La Torre, Santiago"]
[Black "Lopez Martinez, Josep Manuel"]
[Result "1-0"]
[ECO "C78"]
[WhiteElo "2423"]
[BlackElo "2573"]
[Annotator "ChessBase"]
[PlyCount "147"]
[EventDate "2019.09.30"]
[EventType "team-tourn"]
[EventCountry "ESP"]
[SourceTitle "playchess.com"]
[Source "ChessBase"]
[SourceQuality "1"]
[TimeControl "40/5400+30:1800+30"]

1. e4 {[%emt 0:00:00]} e5 {[%emt 0:00:41]} 2. Nf3 {[%emt 0:00:00]} Nc6 {[%emt 0:00:21]} 3. Bb5 {[%emt 0:00:00]} a6 {[%emt 0:00:21]} 4. Ba4 {[%emt 0:00:00]} Nf6 {[%emt 0:00:25]} 5. O-O {[%emt 0:00:00]} b5 {[%emt 0:00:22]} 6. Bb3 {[%emt 0:00:19]} Bb7 {[%emt 0:00:27]} 7. Re1 {[%emt 0:03:19]} Bc5 {[%emt 0:09:09]} 8. c3 {[%emt 0:00:50]} d6 {[%emt 0:01:30]} 9. d4 {[%emt 0:00:10]} Bb6 {[%emt 0:00:10]} 10. Be3 {[%emt 0:00:09]} O-O {[%emt 0:01:29]} 11. Nbd2 {[%emt 0:01:28]} h6 {[%emt 0:05:09]} 12. h3 {[%emt 0:00:33]} Re8 {[%emt 0:01:11]} 13. d5 {[%emt 0:08:52]} Ne7 {[%emt 0:02:39]} 14. Bxb6 {[%emt 0:00:11]} cxb6 {[%emt 0:00:14]} 15. a4 {[%emt 0:00:09]} bxa4 {[%emt 0:00:32]} 16. Bxa4 {[%emt 0:00:06]} Rf8 {[%emt 0:00:28]} 17. Nf1 {[%emt 0:10:15]} Ng6 {[%emt 0:04:42]} 18. Kh2 {[%emt 0:01:23]} b5 {[%emt 0:03:30]} 19. Bc2 {[%emt 0:00:05]} Qb6 {[%emt 0:00:16]} 20. Qd2 {[%emt 0:01:35]} Nd7 {[%emt 0:01:21]} 21. Ne3 {[%emt 0:01:25]} Ne7 {[%emt 0:01:02]} 22. Nh4 {[%emt 0:09:06]} Qd8 {[%emt 0:01:26]} 23. g3 {[%emt 0:02:33]} Rc8 {[%emt 0:03:37]} 24. b4 {[%emt 0:05:15]} Nb6 {[%emt 0:03:57]} 25. Bd3 {[%emt 0:00:27]} Rc7 {[%emt 0:01:13]} 26. Rg1 {[%emt 0:10:41]} Kh8 {[%emt 0:06:35]} 27. Rac1 {[%emt 0:07:03]} Bc8 {[%emt 0:00:39]} 28. f4 {[%emt 0:03:04]} Ng8 {[%emt 0:09:06]} 29. f5 {[%emt 0:03:19]} Nf6 {[%emt 0:00:45]} 30. Nf3 {[%emt 0:00:29]} Nc4 {[%emt 0:02:31]} 31. Nxc4 {[%emt 0:06:07]} bxc4 {[%emt 0:00:26]} 32. Bc2 {[%emt 0:00:05]} a5 {[%emt 0:01:33]} 33. bxa5 {[%emt 0:00:04]} Rc5 {[%emt 0:01:12]} 34. g4 {[%emt 0:00:19]} Nh7 {[%emt 0:03:03]} 35. g5 {[%emt 0:10:59]} hxg5 {[%emt 0:00:28]} 36. Nxg5 {[%emt 0:01:57]} Rxa5 {[%emt 0:03:16]} 37. Nxh7 {[%emt 0:13:15]} Kxh7 {[%emt 0:00:31]} 38. Rg4 {[%emt 0:00:36]} Ra2 {[%emt 0:02:35]} 39. Rcg1 {[%emt 0:00:27]} g6 {[%emt 0:00:40]} 40. Kh1 {[%emt 0:02:27]} Qf6 {[%emt 0:02:49]} 41. Qg2 {[%emt 0:12:33]} Kg7 {[%emt 0:08:20]} 42. Rf1 {[%emt 0:00:31]} Bd7 {[%emt 0:10:44]} 43. Rf2 {[%emt 0:10:28]} Rh8 {[%emt 0:18:58]} 44. fxg6 {[%emt 0:01:52]} Qxf2 {[%emt 0:00:20]} 45. Qxf2 {[%emt 0:01:04]} fxg6 {[%emt 0:02:07]} 46. Rh4 {[%emt 0:02:48]} Rxc2 {[%emt 0:00:23]} 47. Qxc2 {[%emt 0:00:05]} Rxh4 {[%emt 0:00:08]} 48. Qf2 {[%emt 0:00:07]} Rxh3+ {[%emt 0:01:53]} 49. Kg2 {[%emt 0:00:03]} Bg4 {[%emt 0:01:36]} 50. Qb6 {[%emt 0:00:57]} Rxc3 {[%emt 0:04:25]} 51. Qxd6 {[%emt 0:00:05]} Kh6 {[%emt 0:01:50]} 52. Qf6 {[%emt 0:04:18]} Rd3 {[%emt 0:00:28]} 53. Qh8+ {[%emt 0:00:16]} Kg5 {[%emt 0:00:26]} 54. Qxe5+ {[%emt 0:00:03]} Kh4 {[%emt 0:00:30]} 55. Qh8+ {[%emt 0:02:02]} Kg5 {[%emt 0:01:51]} 56. Qe5+ {[%emt 0:00:03]} Kh4 {[%emt 0:00:14]} 57. Qf6+ {[%emt 0:01:08]} g5 {[%emt 0:02:37]} 58. Qf2+ {[%emt 0:00:35]} Kh5 {[%emt 0:00:08]} 59. e5 {[%emt 0:00:31]} Bf3+ {[%emt 0:00:54]} 60. Kh2 {[%emt 0:00:39]} c3 {[%emt 0:02:41]} 61. Qa7 {[%emt 0:00:40]} Be4 {[%emt 0:01:19]} 62. e6 {[%emt 0:00:23]} Rd2+ {[%emt 0:00:36]} 63. Kh3 {[%emt 0:00:07]} Rd3+ {[%emt 0:01:10]} 64. Kh2 {[%emt 0:00:04]} c2 {[%emt 0:03:23]} 65. e7 {[%emt 0:00:02]} Bg6 {[%emt 0:00:40]} 66. e8=Q {[%emt 0:00:02]} Bxe8 {[%emt 0:02:10]} 67. Qh7+ {[%emt 0:00:05]} Kg4 {[%emt 0:00:01]} 68. Qe4+ {[%emt 0:00:04]} Kh5 {[%emt 0:00:06]} 69. Qxe8+ {[%emt 0:00:01]} Kh4 {[%emt 0:01:18]} 70. Qe1+ {[%emt 0:00:05]} Kh5 {[%emt 0:00:13]} 71. Qe8+ {[%emt 0:00:04]} Kh4 {[%emt 0:00:08]} 72. Qe1+ {[%emt 0:00:04]} Kh5 {[%emt 0:00:04]} 73. Qe2+ {[%emt 0:00:25]} g4 {[%emt 0:01:08]} 74. Qxc2 {[%emt 0:00:06]} 1-0

[Event "ESP chT Honor Division 2019"]
[Site "Melilla"]
[Date "2019.10.03"]
[Round "4.20"]
[White "Kuzubov, Yuriy"]
[Black "Peralta, Fernando"]
[Result "1/2-1/2"]
[ECO "D38"]
[WhiteElo "2636"]
[BlackElo "2569"]
[Annotator "ChessBase"]
[PlyCount "120"]
[EventDate "2019.09.30"]
[EventType "team-tourn"]
[EventCountry "ESP"]
[SourceTitle "playchess.com"]
[Source "ChessBase"]
[SourceQuality "1"]
[TimeControl "40/5400+30:1800+30"]

1. c4 {[%emt 0:00:00]} e6 {[%emt 0:00:17]} 2. Nf3 {[%emt 0:00:07]} d5 {[%emt 0:00:44]} 3. d4 {[%emt 0:00:08]} Nf6 {[%emt 0:00:10]} 4. Nc3 {[%emt 0:00:07]} Bb4 {[%emt 0:00:16]} 5. Bg5 {[%emt 0:00:47]} Nbd7 {[%emt 0:01:18]} 6. cxd5 {[%emt 0:01:54]} exd5 {[%emt 0:00:06]} 7. Nd2 {[%emt 0:00:35]} c6 {[%emt 0:05:02]} 8. e3 {[%emt 0:01:27]} Nf8 {[%emt 0:05:24]} 9. Bd3 {[%emt 0:00:07]} Ng6 {[%emt 0:00:56]} 10. O-O {[%emt 0:00:28]} O-O {[%emt 0:00:21]} 11. f4 {[%emt 0:00:31]} h6 {[%emt 0:05:27]} 12. Bxf6 {[%emt 0:00:14]} Qxf6 {[%emt 0:00:03]} 13. f5 {[%emt 0:00:06]} Qg5 {[%emt 0:08:59]} 14. Qe2 {[%emt 0:01:41]} Nh4 {[%emt 0:08:52]} 15. Nf3 {[%emt 0:01:22]} Nxf3+ {[%emt 0:01:19]} 16. Rxf3 {[%emt 0:00:04]} Bd7 {[%emt 0:08:42]} 17. Qf2 {[%emt 0:03:08]} Rfe8 {[%emt 0:10:39]} 18. Rf1 {[%emt 0:22:32]} Qf6 {[%emt 0:04:12]} 19. g4 {[%emt 0:08:01]} h5 {[%emt 0:23:29]} 20. gxh5 {[%emt 0:02:08]} Bxc3 {[%emt 0:01:57]} 21. bxc3 {[%emt 0:00:10]} c5 {[%emt 0:00:07]} 22. Rg3 {[%emt 0:05:39]} cxd4 {[%emt 0:00:53]} 23. exd4 {[%emt 0:02:54]} Kh8 {[%emt 0:02:19]} 24. Qd2 {[%emt 0:15:02]} a6 {[%emt 0:01:36]} 25. Qg2 {[%emt 0:18:02]} Rac8 {[%emt 0:04:55]} 26. Qxd5 {[%emt 0:02:24]} Bc6 {[%emt 0:00:07]} 27. Qb3 {[%emt 0:01:33]} b5 {[%emt 0:02:26]} 28. Qb2 {[%emt 0:04:27]} Re7 {[%emt 0:01:58]} 29. Qf2 {[%emt 0:05:59]} Bb7 {[%emt 0:00:42]} 30. Be2 {[%emt 0:00:37]} Rec7 {[%emt 0:01:00]} 31. Rc1 {[%emt 0:01:45]} Be4 {[%emt 0:00:38]} 32. a3 {[%emt 0:00:55]} Qxf5 {[%emt 0:00:34]} 33. Qxf5 {[%emt 0:00:30]} Bxf5 {[%emt 0:00:02]} 34. Kf2 {[%emt 0:00:28]} Be6 {[%emt 0:00:50]} 35. Ke1 {[%emt 0:00:51]} Bc4 {[%emt 0:00:35]} 36. Bxc4 {[%emt 0:00:35]} Rxc4 {[%emt 0:00:08]} 37. Kd2 {[%emt 0:00:11]} Ra4 {[%emt 0:00:51]} 38. Ra1 {[%emt 0:00:24]} Rc6 {[%emt 0:00:33]} 39. Rf1 {[%emt 0:00:59]} Kg8 {[%emt 0:00:30]} 40. Ra1 {[%emt 0:00:34]} Kf8 {[%emt 0:00:31]} 41. Re3 {[%emt 0:30:22]} Rh6 {[%emt 0:04:15]} 42. Re5 {[%emt 0:00:00]} g6 {[%emt 0:02:30]} 43. hxg6 {[%emt 0:00:00]} Rxh2+ {[%emt 0:01:16]} 44. Kd3 {[%emt 0:00:00]} Rh3+ {[%emt 0:04:00]} 45. Ke4 {[%emt 0:00:00]} Rxc3 {[%emt 0:04:50]} 46. gxf7 {[%emt 0:00:00]} Raxa3 {[%emt 0:05:27]} 47. Rxa3 {[%emt 0:01:51]} Rxa3 {[%emt 0:00:05]} 48. d5 {[%emt 0:00:13]} Kxf7 {[%emt 0:05:40]} 49. d6 {[%emt 0:00:49]} Ra1 {[%emt 0:01:19]} 50. Kd5 {[%emt 0:01:01]} Rd1+ {[%emt 0:00:49]} 51. Kc6 {[%emt 0:00:42]} b4 {[%emt 0:01:47]} 52. Re3 {[%emt 0:00:38]} a5 {[%emt 0:02:08]} 53. d7 {[%emt 0:00:23]} Rc1+ {[%emt 0:01:26]} 54. Kd6 {[%emt 0:00:48]} Rd1+ {[%emt 0:00:06]} 55. Kc7 {[%emt 0:00:24]} Rc1+ {[%emt 0:00:06]} 56. Kb8 {[%emt 0:00:36]} Rd1 {[%emt 0:00:09]} 57. Kc8 {[%emt 0:00:08]} Rc1+ {[%emt 0:00:03]} 58. Kb8 {[%emt 0:00:53]} Rd1 {[%emt 0:00:06]} 59. Kc8 {[%emt 0:00:14]} Rc1+ {[%emt 0:00:06]} 60. Kb7 {[%emt 0:00:53]} Rd1 {[%emt 0:00:05]} 1/2-1/2

[Event "ESP chT Honor Division 2019"]
[Site "Melilla"]
[Date "2019.10.04"]
[Round "5.1"]
[White "Banusz, Tamas"]
[Black "Abasov, Nijat"]
[Result "1/2-1/2"]
[ECO "A46"]
[WhiteElo "2619"]
[BlackElo "2632"]
[Annotator "ChessBase"]
[PlyCount "61"]
[EventDate "2019.09.30"]
[EventType "team-tourn"]
[EventCountry "ESP"]
[SourceTitle "playchess.com"]
[Source "ChessBase"]
[SourceQuality "1"]
[TimeControl "40/5400+30:1800+30"]

1. d4 {[%emt 0:00:00]} Nf6 {[%emt 0:00:00]} 2. Nf3 {[%emt 0:00:00]} e6 {[%emt 0:00:00]} 3. g3 {[%emt 0:00:00]} d5 {[%emt 0:02:34]} 4. Bg2 {[%emt 0:00:05]} c5 {[%emt 0:00:05]} 5. O-O {[%emt 0:01:05]} Nc6 {[%emt 0:01:29]} 6. c4 {[%emt 0:00:19]} dxc4 {[%emt 0:00:07]} 7. dxc5 {[%emt 0:01:26]} Qxd1 {[%emt 0:00:13]} 8. Rxd1 {[%emt 0:00:03]} Bxc5 {[%emt 0:00:09]} 9. Nbd2 {[%emt 0:00:32]} c3 {[%emt 0:00:10]} 10. bxc3 {[%emt 0:00:07]} O-O {[%emt 0:00:08]} 11. Nb3 {[%emt 0:01:48]} Be7 {[%emt 0:00:11]} 12. c4 {[%emt 0:01:33]} Bd7 {[%emt 0:00:40]} 13. Bb2 {[%emt 0:01:08]} Rfd8 {[%emt 0:01:29]} 14. Nfd4 {[%emt 0:00:58]} Rac8 {[%emt 0:00:18]} 15. Nb5 {[%emt 0:00:24]} b6 {[%emt 0:00:22]} 16. Nd6 {[%emt 0:00:56]} Bxd6 {[%emt 0:02:08]} 17. Rxd6 {[%emt 0:00:06]} Be8 {[%emt 0:00:06]} 18. Rd3 {[%emt 0:00:57]} Nb4 {[%emt 0:00:06]} 19. Rxd8 {[%emt 0:01:07]} Rxd8 {[%emt 0:00:06]} 20. Bc3 {[%emt 0:07:58]} a5 {[%emt 0:08:40]} 21. Nd2 {[%emt 0:21:28]} Bc6 {[%emt 0:09:26]} 22. Bxc6 {[%emt 0:10:39]} Nxc6 {[%emt 0:00:10]} 23. Rb1 {[%emt 0:00:10]} Rb8 {[%emt 0:13:05]} 24. Kg2 {[%emt 0:08:49]} Kf8 {[%emt 0:04:03]} 25. f4 {[%emt 0:01:03]} Nd7 {[%emt 0:02:40]} 26. Ne4 {[%emt 0:13:22]} f6 {[%emt 0:00:29]} 27. Kf2 {[%emt 0:03:46]} Ke7 {[%emt 0:02:31]} 28. a3 {[%emt 0:07:36]} f5 {[%emt 0:14:26]} 29. Nd2 {[%emt 0:01:32]} g6 {[%emt 0:00:57]} 30. Ke3 {[%emt 0:04:51]} Nc5 {[%emt 0:03:09]} 31. Nf3 {[%emt 0:01:01]} 1/2-1/2